Cogmind - Beta 13 @@@ ROGUE MODE // 2024.05.10 @ 05:17:56 Player: N00Bk1llr Result: Destroyed by H-77 Assassin with High-powered Shotgun Performance ------------- Evolutions (7) 3500 Regions Visited (16) 3200 Robots Destroyed (160) 800 Value Destroyed (6136) 6136 Prototype IDs (25) 500 Alien Tech Used (2) 400 Bonus (904) 904 TOTAL SCORE: 15440 Bonus ------- High Alert Combat Kills 233 Follower Combat Kills 350 Entered DSFs 500 Met Zhirov 300 Friendly Fire -479 Cogmind --------- Core Integrity 0/1300 Matter 180/300 Energy 99/100 System Corruption 8% Temperature Cool (0) Movement Core (50) Location -3/Research Parts ------- > --- POWER (2) -------- (None) > --- PROPULSION (6) --- (None) > --- UTILITY (10) ----- (None) > --- WEAPON (3) ------- (None) > --- INVENTORY (5) ---- Improved Matter Compressor (0) Advanced Terrain Scanner Thermal Shield Advanced Thermal Shield Improved Force Field Peak State ------------ > --- POWER ------------ Backup Power I Micro Antimatter Reactor > --- PROPULSION ------- Flexi-carbon Leg Myomer Leg Myomer Leg Myomer Leg Myomer Leg Myomer Leg > --- UTILITY ---------- Advanced Cryofiber Web Advanced Heat Sink Experimental Cooling System Large Storage Unit Advanced Terrain Scan Processor Advanced Targeting Computer Improved Phase Shifter Improved Medium Armor Plating Graphene Brace > --- WEAPON ----------- Gamma Rifle Railgun Enhanced Gauss Cannon > --- INVENTORY -------- Improved Matter Compressor Thermal Shield Advanced Thermal Shield Advanced Thermal Shield Improved Force Field High-powered Shotgun [Rating: 119] Favorites ----------- Power F-cell Engine Engine F-cell Engine Power Core Micro Fission Core Reactor Light Antimatter Reactor Propulsion Improved Titanium Leg Treads Light Treads Leg Improved Titanium Leg Wheel Armored Wheel Flight Unit Xenon Bombardment Thruster Utility Large Storage Unit Device Seismic Detector Storage Large Storage Unit Processor Advanced Targeting Computer Hackware Improved Hacking Suite Protection Layered Medium Armor Plating Weapon Enhanced Autogun Energy Gun Tesla Rifle Energy Cannon Heavy Phase Cannon Ballistic Gun Enhanced Autogun Ballistic Cannon Enhanced Gauss Cannon Launcher Improved Grenade Launcher Build | -11 -10 -10 -10 -9 -8 -7 -7 -6 -5 -5 -5 -5 -4 -4 -4 -3 ------- Run | Yrd Mat Min Exi Min Mat Fac DSF Fac Fac Upp Upp Zhi Pro Fac Ext Res Slots Evolved 14 | . . . . . 4 2 . 2 2 . . . . 2 . 2 Power 1 | . . . . . . . . . . . . . . 1 . . Propulsion 4 | . . . . . 2 . . 1 . . . . . . . 1 Utility 8 | . . . . . 2 1 . 1 2 . . . . 1 . 1 Weapon 1 | . . . . . . 1 . . . . . . . . . . Parts Attached 213 | 6 7 1 . 4 16 6 . 22 18 11 9 9 5 41 35 23 Power 17 | 1 1 . . . 1 1 . 1 1 . 1 1 . 3 3 3 Engine 8 | 1 1 . . . 1 1 . 1 1 . 1 . . 1 . . Core 2 | . . . . . . . . . . . . . . 1 1 . Reactor 7 | . . . . . . . . . . . . 1 . 1 2 3 Propulsion 40 | 2 . . . 2 3 4 . 3 1 2 . . . 6 9 8 Treads 8 | 2 . . . 2 3 . . . . . . . . . 1 . Leg 26 | . . . . . . 4 . 3 1 2 . . . 5 8 3 Wheel 1 | . . . . . . . . . . . . . . 1 . . Hover . | . . . . . . . . . . . . . . . . . Flight 5 | . . . . . . . . . . . . . . . . 5 Utility 96 | 1 3 1 . . 4 . . 12 10 2 5 7 3 22 17 9 Device 64 | . . 1 . . . . . 7 8 2 4 4 3 17 13 5 Storage 7 | 1 2 . . . . . . . 1 . . 1 . 1 . 1 Processor 4 | . 1 . . . . . . 1 . . . . . . . 2 Hackware 4 | . . . . . 1 . . 2 . . . 1 . . . . Protection 17 | . . . . . 3 . . 2 1 . 1 1 . 4 4 1 Artifact . | . . . . . . . . . . . . . . . . . Weapon 60 | 2 3 . . 2 8 1 . 6 6 7 3 1 2 10 6 3 Energy Gun 4 | . . . . . . . . 1 2 . . . . . . 1 Energy Cannon 2 | . . . . . . . . . . . . . . 2 . . Ballistic Gun 28 | 2 3 . . 2 6 1 . 3 1 2 1 . 1 1 3 2 Ballistic Cannon 12 | . . . . . . . . 1 1 2 1 . . 4 3 . Launcher 14 | . . . . . 2 . . 1 2 3 1 1 1 3 . . Special Weapon . | . . . . . . . . . . . . . . . . . Impact Weapon . | . . . . . . . . . . . . . . . . . Slashing Weapon . | . . . . . . . . . . . . . . . . . Piercing Weapon . | . . . . . . . . . . . . . . . . . Special Melee Weapon . | . . . . . . . . . . . . . . . . . Unidentified Prototypes 13 | . . . . . 2 . . 1 1 . . 5 . 2 1 1 Corrupted Parts 1 | . . . . . . . . . . . . . . . . 1 System Corruption 5 | . . . . . . . . . . . . . . . . 5 Parts Lost 81 | . . . . 1 4 . 1 1 2 5 2 . 1 6 27 31 Power 13 | . . . . . 1 . . . . . 1 . . 2 4 5 Propulsion 24 | . . . . 1 2 . . . 1 1 . . 1 1 5 12 Utility 28 | . . . . . 1 . . 1 1 2 . . . 2 12 9 Weapon 16 | . . . . . . . 1 . . 2 1 . . 1 6 5 Highest Loss Streak 20 | . . . . 1 4 . 1 1 2 4 2 . 1 3 13 20 To Critical Strikes 1 | . . . . . . . . . . . . . . . 1 . Average Slot Usage (%) 93 | . 99 100 71 84 97 92 88 97 95 99 99 99 97 97 85 64 Engine 6 | . 14 14 14 14 8 7 7 6 5 5 5 2 . 4 . 2 Treads 9 | . 28 28 28 28 35 . . . . . . . . . . . Leg 18 | . . . . . . 30 30 32 26 28 29 29 26 23 24 18 Device 14 | . . 11 14 14 9 7 7 11 20 22 23 19 17 19 16 15 Storage 7 | . 14 14 14 14 9 7 7 6 5 5 5 5 5 5 5 3 Processor 4 | . 13 2 . . . . . 5 5 5 5 5 5 5 3 7 Hackware 5 | . . . . . 8 7 7 6 5 5 5 8 11 10 8 1 Protection 4 | . . . . . 7 7 7 6 5 5 4 5 5 5 3 1 Ballistic Gun 12 | . 28 28 . 13 17 23 19 12 6 6 11 11 12 6 2 3 Ballistic Cannon 2 | . . . . . . . . 3 3 6 4 . . 4 6 3 Naked Turns 13 | . . . . . . . . . . . . . . . . 13 Heaviest Build 97 | 13 33 34 28 34 45 48 48 64 69 71 68 66 70 95 97 63 Greatest Support 145 | 40 40 40 40 40 80 80 80 92 75 100 100 80 80 115 120 145 Greatest Overweight (x) 11 | 1 . . . . 1 . . . 1 . . . . 1 1 11 Average Overweight (x) . | . . . . . . . . . . . . . . . . . Largest Inventory Capacity 15 | 8 15 15 15 15 15 15 15 15 15 15 15 15 15 15 15 15 Average Capacity 14 | 7 9 15 15 15 15 15 15 15 15 15 15 15 15 15 15 12 Most Carried 15 | 2 9 7 9 9 15 14 12 15 15 15 15 15 15 15 13 8 Average Carried 11 | 1 5 7 8 8 13 8 10 13 14 11 14 14 14 14 9 6 Final Capacity 15 | 8 15 15 15 15 15 15 15 15 15 15 15 15 15 15 15 5 Final Carried 15 | 2 7 7 9 8 14 8 12 15 15 13 13 15 14 13 9 5 Class Distribution -------------------- 37% | Tank 34% | Mutant 11% | Hacker-Tank 6% | Hacker-Gunner 5% | Scavenger-Mutant 3% | Scavenger-Gunner Dominant Class ---------------- Mutant | -10/Materials Mutant | -10/Mines Mutant | -10/Exiles Mutant | -9/Mines Mutant | -8/Materials Mutant | -7/Factory Tank | -7/DSF Tank | -6/Factory Tank | -5/Factory Tank | -5/Upper Caves Tank | -5/Upper Caves Hacker-Tank | -5/Zhirov Hacker-Gunner | -4/Proximity Caves Hacker-Tank | -4/Factory Hacker-Tank | -4/Extension Scavenger-Mutant | -3/Research Resources | -11 -10 -10 -10 -9 -8 -7 -7 -6 -5 -5 -5 -5 -4 -4 -4 -3 ----------- Run | Yrd Mat Min Exi Min Mat Fac DSF Fac Fac Upp Upp Zhi Pro Fac Ext Res Matter Collected 7398 | 203 333 64 . 55 862 . 5 1112 487 651 369 321 153 795 1674 314 Remotely . | . . . . . . . . . . . . . . . . . Salvage Created 6589 | . 416 66 . . 1397 . . 822 534 524 126 321 99 783 1118 383 Parts 321 | . 29 9 . . 73 . . 45 41 7 3 5 8 33 41 27 Haulers Intercepted 5 | . . . . . 1 . . 3 1 . . . . . . . Recyclers Shooed 11 | . 1 . . . 3 . . 6 . . . . . 1 . . Parts Field Recycled 34 | . . . . . . . . . . . . . . 1 33 . Retrieved Matter 193 | . . . . . . . . . . . . . . . 193 . Parts Self-Destructed 17 | . . . . . . . . . . 3 3 5 6 . . . Prevented 3 | . . . . . . . . . . 3 . . . . . . Kills | -11 -10 -10 -10 -9 -8 -7 -7 -6 -5 -5 -5 -5 -4 -4 -4 -3 ------- Run | Yrd Mat Min Exi Min Mat Fac DSF Fac Fac Upp Upp Zhi Pro Fac Ext Res Combat Hostiles Destroyed 111 | . 8 3 . . 22 . . 11 15 10 3 . 5 9 18 7 Guns 54 | . 8 3 . . 15 . . 6 6 2 2 . 4 2 2 4 Cannons 34 | . . . . . . . . 5 3 1 1 . . 5 16 3 AOE 23 | . . . . . 7 . . . 6 7 . . 1 2 . . Classes Destroyed 17 | . 2 2 . . 7 . . 1 1 1 2 . . . 1 . Worker 7 | . . . . . 2 . . 3 . . . . . 1 1 . Builder 6 | . . . . . 2 . . . . . . . . 1 2 1 Tunneler 5 | . . 1 . . . . . 2 1 . . . . 1 . . Hauler 5 | . . . . . 1 . . 3 1 . . . . . . . Recycler 8 | . . . . . 5 . . . . . . . . 2 1 . Minesweeper 1 | . . . . . . . . . . . 1 . . . . . Operator 2 | . . . . . 1 . . 1 . . . . . . . . Watcher 13 | . 3 . . . 2 . . 3 2 . . . . 1 1 1 Swarmer 33 | . . 3 . . 4 . . 4 9 . 1 . 4 . 5 3 Grunt 40 | . 8 . . . 15 . . 4 1 6 . . . 3 2 1 Brawler 3 | . . . . . . . . . 1 2 . . . . . . Duelist 1 | . . . . . . . . . . 1 . . . . . . Sentry 10 | . . . . . 3 . . . . 1 . . . 1 5 . Specialist 2 | . . . . . 2 . . . . . . . . . . . Hunter 11 | . . . . . . . . . . . 2 . . 4 4 1 Programmer 11 | . . . . . . . . 3 4 . . . 1 1 . 2 Behemoth 2 | . . . . . . . . . . . . . . . 2 . Best Kill Streak 11 | . 3 3 . . 11 . . 5 8 7 2 . 4 6 4 3 Combat Bots Only 8 | . 2 3 . . 7 . . 4 8 7 2 . 4 3 4 2 Max Kills in Single Turn 5 | . 2 2 . . 5 . . 2 3 2 1 . 2 3 2 2 Gunslinging 1 | . 1 1 . . . . . . . . . . . . . . Exploded 3 | . . . . . 2 . . . 3 2 . . 1 1 . . Melee . | . . . . . . . . . . . . . . . . . Uniques/NPCs Destroyed . | . . . . . . . . . . . . . . . . . Combat | -11 -10 -10 -10 -9 -8 -7 -7 -6 -5 -5 -5 -5 -4 -4 -4 -3 -------- Run | Yrd Mat Min Exi Min Mat Fac DSF Fac Fac Upp Upp Zhi Pro Fac Ext Res Hostile Shots Fired 1158 | . 31 6 . 6 102 . 4 94 55 35 30 . 17 121 283 374 Missed 409 | . 7 1 . . 28 . 1 39 14 12 13 . 6 34 94 160 Damage Taken 13372 | . 340 41 . 85 1320 . 142 807 544 741 263 42 130 1452 3443 4022 Core 2326 | . 77 17 . . 153 . 55 79 9 136 12 . . 195 287 1306 Absorbed by Shields 1255 | . . . . . . . . 192 144 90 35 14 48 309 423 . Ignored by Resistances 646 | . . . . . . . . . 106 6 35 . . 7 428 64 Regen/Repaired (Parts) 841 | . . . . . 58 . . . . . . . . 164 . 619 Core Remaining (%) 78 | 100 . . . 62 72 . 92 90 . . . . 84 . 52 . Volleys Fired 443 | . 27 5 . 4 77 . . 56 27 19 28 30 7 31 87 45 Largest 3 | . 2 2 . 2 2 . . 3 3 3 3 3 3 3 3 3 Hottest 221 | . 46 46 . 46 69 . . 131 147 147 115 91 94 191 221 167 Shots Fired 971 | . 54 11 . 8 150 . . 160 70 40 49 33 17 86 208 85 Gun 606 | . 54 11 . 8 138 . . 132 41 18 24 30 14 28 48 60 Cannon 314 | . . . . . . . . 27 20 6 22 . . 54 160 25 Launcher 51 | . . . . . 12 . . 1 9 16 3 3 3 4 . . Special . | . . . . . . . . . . . . . . . . . Kinetic 804 | . 54 11 . 8 138 . . 127 47 17 46 30 14 65 181 66 Thermal 44 | . . . . . . . . . . . . . . 17 27 . Explosive 51 | . . . . . 12 . . 1 9 16 3 3 3 4 . . Electromagnetic 72 | . . . . . . . . 32 14 7 . . . . . 19 Robot Hit Streak 37 | . 16 8 . 2 11 . . 13 9 31 37 30 31 7 7 7 Robot Miss Streak 9 | . 3 2 . 2 5 . . 9 4 1 3 . 1 3 8 3 Penetration Max 2 | . . . . . . . . 2 1 . . . . . 1 1 Secondary Targets 7 | . 1 1 . . 5 . . . . . . . . . . . Max Gunslinging Chain 1 | . 1 1 . . 1 . . . . . . . . . . . Shots Hit Robots 582 | . 39 8 . 4 85 . . 115 37 34 21 27 8 44 118 42 Core Hits 363 | . 18 4 . . 62 . . 85 31 32 15 13 7 28 45 23 Critical Kills 8 | . . . . . . . . . . . . . . 3 5 . Critical Parts Destroyed 11 | . . . . . 1 . . . . . . . . 3 7 . Critical Strikes 38 | . . . . . 1 . . 2 2 . . . . 7 20 6 Destroy 22 | . . . . . 1 . . . . . . . . 6 15 . Blast 14 | . . . . . . . . . 2 . . . . 1 5 6 Corrupt 2 | . . . . . . . . 2 . . . . . . . . Melee Attacks . | . . . . . . . . . . . . . . . . . Impact . | . . . . . . . . . . . . . . . . . Slashing . | . . . . . . . . . . . . . . . . . Piercing . | . . . . . . . . . . . . . . . . . Sneak Attacks . | . . . . . . . . . . . . . . . . . Combat Hostiles . | . . . . . . . . . . . . . . . . . Follow-up Attacks . | . . . . . . . . . . . . . . . . . Damage Inflicted 17544 | . 574 117 . 61 2330 . . 2618 1662 1571 612 472 422 2236 3754 1115 Guns 7124 | . 574 117 . 61 1278 . . 1786 441 290 256 472 191 337 640 681 Cannons 5763 | . . . . . . . . 440 563 133 155 . . 929 3114 429 Explosions 4274 | . . . . . 1052 . . 34 646 1148 201 . 231 962 . . Melee . | . . . . . . . . . . . . . . . . . Ramming 383 | . . . . . . . . 358 12 . . . . 8 . 5 Kinetic 10828 | . 574 117 . 61 1278 . . 1772 876 263 411 472 191 844 3100 869 Thermal 1413 | . . . . . . . . 34 . . . . . 725 654 . Explosive 3903 | . . . . . 1052 . . . 612 1148 201 . 231 659 . . Electromagnetic 1017 | . . . . . . . . 454 162 160 . . . . . 241 Impact . | . . . . . . . . . . . . . . . . . Slashing . | . . . . . . . . . . . . . . . . . Piercing . | . . . . . . . . . . . . . . . . . Highest Corruption 8 | . 1 1 1 1 . . . . 2 2 2 2 2 3 8 8 Average Corruption 2 | . 1 1 1 1 . . . . 2 2 2 2 2 2 5 4 Corruption Purged . | . . . . . . . . . . . . . . . . . Corruption Blocked . | . . . . . . . . . . . . . . . . . Effects 94 | . 2 6 2 2 . . . . 3 10 14 8 7 6 23 11 Message Errors 30 | . 1 2 1 1 . . . . 2 3 2 3 4 1 8 2 Matter Fused 14 | . . . . . . . . . . 3 2 1 2 2 3 1 Heat Flow Errors 11 | . . . . . . . . . 1 1 2 . . . 5 2 Energy Discharges 7 | . . 2 . . . . . . . . 1 1 . . 1 2 Parts Rejected 2 | . . . . . . . . . . . . . . 1 1 . Parts Fused 1 | . . . . . . . . . . . . . 1 . . . Data Loss (minor) 10 | . 1 . 1 1 . . . . . 1 2 1 . 1 2 . Data Loss (major) 7 | . . . . . . . . . . 1 2 1 . . 1 2 Misfires 5 | . . 1 . . . . . . . . 2 1 . . . 1 Alerts 3 | . . 1 . . . . . . . 1 . . . . 1 . Weapon Failures 4 | . . . . . . . . . . . 1 . . 1 1 1 Overload Shots . | . . . . . . . . . . . . . . . . . Overflow Damage 340 | . . . . . 9 . . 5 14 60 3 . 4 180 65 . Projectiles 141 | . . . . . . . . . 14 . 3 . . 59 65 . Explosions 194 | . . . . . 9 . . . . 60 . . 4 121 . . Melee 5 | . . . . . . . . 5 . . . . . . . . Knockbacks 39 | . . . . . . . . 8 2 2 2 . . 8 8 9 Impact 4 | . . . . . . . . 4 . . . . . . . . Kinetic 34 | . . . . . . . . 3 2 2 2 . . 8 8 9 Secondary 1 | . . . . . . . . 1 . . . . . . . . Self-Inflicted Damage 618 | . . . . . 58 . . 48 17 296 53 57 . 87 . 2 Shots 16 | . . . . . 4 . . 1 1 6 1 1 . 2 . . Rammed 4 | . . . . . . . . . . . . . . . . 4 Targets Rammed 34 | . . . . . . . . 28 1 . . . . 1 . 4 Kicked 30 | . . . . . . . . 28 1 . . . . 1 . . Crushed . | . . . . . . . . . . . . . . . . . Highest Temperature 430 | . 59 8 . 35 84 . . 249 323 387 205 . 6 270 430 200 Average Temperature 86 | . 20 5 . 12 17 . . 88 122 187 51 . 4 88 149 84 Received Heat Transfer 2019 | . 183 . . 45 369 . . 260 109 126 . . . 168 333 426 Effects 10 | . . . . . . . . . 2 3 . . . . 5 . Shutdowns 3 | . . . . . . . . . . . . . . . 3 . Energy Bleed 2 | . . . . . . . . . 2 . . . . . . . Interference 3 | . . . . . . . . . . 2 . . . . 1 . Matter Decay 1 | . . . . . . . . . . 1 . . . . . . Short Circuit 1 | . . . . . . . . . . . . . . . 1 . Siege Activations . | . . . . . . . . . . . . . . . . . Robots Corrupted . | . . . . . . . . . . . . . . . . . Combat Hostiles . | . . . . . . . . . . . . . . . . . Parts Fried 2 | . . . . . . . . 2 . . . . . . . . Impact Corruptions 3 | . . . . . . . . 3 . . . . . . . . Robots Melted . | . . . . . . . . . . . . . . . . . Combat Hostiles . | . . . . . . . . . . . . . . . . . Parts Melted 1 | . . . . . . . . . . . . . . . 1 . Heat Transferred 1347 | . . . . . . . . 50 . . . . . 594 703 . Parts Sabotaged . | . . . . . . . . . . . . . . . . . Parts Stolen . | . . . . . . . . . . . . . . . . . Parts Stripped . | . . . . . . . . . . . . . . . . . Power Chain Reactions 1 | . . . . . . . . 1 . . . . . . . . Alert | -11 -10 -10 -10 -9 -8 -7 -7 -6 -5 -5 -5 -5 -4 -4 -4 -3 ------- Run | Yrd Mat Min Exi Min Mat Fac DSF Fac Fac Upp Upp Zhi Pro Fac Ext Res Peak Influence 736 | . 204 154 . 51 736 324 246 419 596 . . . . 348 295 165 Initial 320 | . . 79 . . 19 320 226 128 189 . . . . 69 170 48 Average 169 | . 78 71 . 8 185 320 231 244 431 . . . . 124 178 69 Maximum Alert Level 3 | . 1 . . . 3 1 1 2 2 . . . . 1 1 . Low Security (%) 70 | 100 98 100 . 100 70 . . 40 14 . . . . 88 60 100 Level 1 22 | . 1 . . . 20 100 100 57 8 . . . . 11 39 . Level 2 7 | . . . . . 4 . . 1 76 . . . . . . . Level 3 . | . . . . . 3 . . . . . . . . . . . Level 4 . | . . . . . . . . . . . . . . . . . Level 5 . | . . . . . . . . . . . . . . . . . High Security . | . . . . . . . . . . . . . . . . . Max Security . | . . . . . . . . . . . . . . . . . Squads Dispatched 33 | . 3 . . . 8 . 1 8 4 . . . . 1 3 5 Investigation 15 | . 3 . . . 4 . . 4 . . . . . . . 4 Extermination 7 | . . . . . . . . 3 2 . . . . 1 . 1 Reinforcement 10 | . . . . . 3 . 1 1 2 . . . . . 3 . Assault . | . . . . . . . . . . . . . . . . . Garrison 1 | . . . . . 1 . . . . . . . . . . . Intercept . | . . . . . . . . . . . . . . . . . Searches Triggered . | . . . . . . . . . . . . . . . . . Construction Impeded 4 | . . . . . . . . . 2 . . . . . 2 . Haulers Reinforced . | . . . . . . . . . . . . . . . . . Active Scanning Responses . | . . . . . . . . . . . . . . . . . Cargo Convoy Interrupts . | . . . . . . . . . . . . . . . . . Stealth | -11 -10 -10 -10 -9 -8 -7 -7 -6 -5 -5 -5 -5 -4 -4 -4 -3 --------- Run | Yrd Mat Min Exi Min Mat Fac DSF Fac Fac Upp Upp Zhi Pro Fac Ext Res Distress Signals 12 | . 2 . . . 4 . . 1 2 . . . . 1 2 . Communications Jammed 4 | . . . . . . . . . 4 . . . . . . . Distress Signals 4 | . . . . . . . . . 4 . . . . . . . Times Spotted 209 | . 12 3 . 2 37 . 1 33 21 13 3 . 5 18 27 34 Peak Tracking Total 13 | . 3 2 . 2 5 . 1 5 8 7 5 . 4 5 5 13 Tactical Retreats 27 | . . . . . 1 . 2 8 2 3 2 . . 1 1 7 Traps | -11 -10 -10 -10 -9 -8 -7 -7 -6 -5 -5 -5 -5 -4 -4 -4 -3 ------- Run | Yrd Mat Min Exi Min Mat Fac DSF Fac Fac Upp Upp Zhi Pro Fac Ext Res Traps Triggered 9 | . 2 . . . . . . 2 2 . . . . 1 2 . Indirectly 2 | . . . . . . . . . 2 . . . . . . . Trap Hack Attempts . | . . . . . . . . . . . . . . . . . Triggered . | . . . . . . . . . . . . . . . . . Disarmed . | . . . . . . . . . . . . . . . . . Reprogrammed . | . . . . . . . . . . . . . . . . . Reused . | . . . . . . . . . . . . . . . . . Traps Extracted . | . . . . . . . . . . . . . . . . . Installed . | . . . . . . . . . . . . . . . . . Triggered 4 | . . . . . . . . . 1 . . . 3 . . . Objects Rigged 1 | . . . . . 1 . . . . . . . . . . . Machines | -11 -10 -10 -10 -9 -8 -7 -7 -6 -5 -5 -5 -5 -4 -4 -4 -3 ---------- Run | Yrd Mat Min Exi Min Mat Fac DSF Fac Fac Upp Upp Zhi Pro Fac Ext Res Machines Disabled 16 | . . . . . 3 . . 3 2 . . 2 . 4 2 . Max in Single Turn 2 | . . . . . 1 . . 1 2 . . 2 . 1 1 . Garrison Access 1 | . . . . . . . . . . . . . . 1 . . Machines Repaired . | . . . . . . . . . . . . . . . . . Machines Dismantled . | . . . . . . . . . . . . . . . . . Machines Sabotaged . | . . . . . . . . . . . . . . . . . Overloaded Fab Kills . | . . . . . . . . . . . . . . . . . Hacking | -11 -10 -10 -10 -9 -8 -7 -7 -6 -5 -5 -5 -5 -4 -4 -4 -3 --------- Run | Yrd Mat Min Exi Min Mat Fac DSF Fac Fac Upp Upp Zhi Pro Fac Ext Res Machines Accessed 55 | . 8 . 1 . 12 1 . 6 3 . . 9 . 6 3 6 Terminals 32 | . 6 . . . 8 1 . 5 2 . . . . 2 3 5 Fabricators . | . . . . . . . . . . . . . . . . . Repair Stations 3 | . . . . . 1 . . . . . . . . 1 . 1 Recycling Units 7 | . 2 . . . 2 . . 1 . . . . . 2 . . Scanalyzers 1 | . . . . . . . . . 1 . . . . . . . Garrison Access 2 | . . . . . 1 . . . . . . . . 1 . . Total Hacks 170 | . 25 . 1 . 29 1 . 16 15 . . 48 . 11 6 18 Successful 109 | . 10 . 1 . 18 1 . 2 10 . . 48 . 7 4 8 Failed 60 | . 14 . . . 11 . . 14 5 . . . . 4 2 10 Catastrophic 14 | . 6 . . . 1 . . 3 . . . . . 1 . 3 Database Lockouts 1 | . 1 . . . . . . . . . . . . . . . Manual 58 | . 23 . . . 14 . . 4 5 . . . . 3 . 9 Terminals 85 | . 22 . . . 21 1 . 14 8 . . . . 3 6 10 Fabricators . | . . . . . . . . . . . . . . . . . Repair Stations 14 | . . . . . 3 . . . . . . . . 3 . 8 Recycling Units 10 | . 3 . . . 2 . . 2 . . . . . 3 . . Scanalyzers 7 | . . . . . . . . . 7 . . . . . . . Garrison Access 5 | . . . . . 3 . . . . . . . . 2 . . Terminal Hacks 73 | . 5 . 1 . 9 1 . 1 2 . . 48 . 1 4 1 Record 37 | . . . 1 . . . . . . . . 36 . . . . Part Schematic 5 | . . . . . 1 . . . . . . 4 . . . . Robot Analysis 5 | . 1 . . . . . . . . . . 4 . . . . Prototype ID Bank 6 | . . . . . 2 . . . . . . 4 . . . . Open Door 2 | . . . . . . . . . . . . . . 1 1 . Open DSF 2 | . . . . . . 1 . . . . . . . . . 1 Branch Access Points 1 | . . . . . . . . . 1 . . . . . . . Alert Level 1 | . . . . . . . . . . . . . . . 1 . Locate Traps 6 | . 1 . . . 3 . . 1 . . . . . . 1 . Security Status 1 | . 1 . . . . . . . . . . . . . . . Hauler Manifests 4 | . 1 . . . 1 . . . 1 . . . . . 1 . Registered Prototypes 1 | . . . . . 1 . . . . . . . . . . . Zone Layout 2 | . 1 . . . 1 . . . . . . . . . . . Fabricator Hacks . | . . . . . . . . . . . . . . . . . Repair Station Hacks 11 | . . . . . 2 . . . . . . . . 2 . 7 Scan Component 5 | . . . . . 1 . . . . . . . . 1 . 3 Repair 5 | . . . . . 1 . . . . . . . . 1 . 3 Refit 1 | . . . . . . . . . . . . . . . . 1 Recycling Unit Hacks 3 | . . . . . . . . . . . . . . 3 . . Retrieve Matter 3 | . . . . . . . . . . . . . . 3 . . Scanalyzer 6 | . . . . . . . . . 6 . . . . . . . Insert Component 3 | . . . . . . . . . 3 . . . . . . . Analyze 3 | . . . . . . . . . 3 . . . . . . . Garrison Access Hacks 1 | . . . . . . . . . . . . . . 1 . . Seal Access 1 | . . . . . . . . . . . . . . 1 . . Unauthorized Hacks 15 | . 5 . . . 7 . . 1 2 . . . . . . . Terminals 10 | . 3 . . . 4 . . 1 2 . . . . . . . Botnet 8 | . 3 . . . 2 . . 1 2 . . . . . . . Detonate 1 | . . . . . 1 . . . . . . . . . . . Operators 1 | . . . . . 1 . . . . . . . . . . . Fabricators . | . . . . . . . . . . . . . . . . . Repair Stations . | . . . . . . . . . . . . . . . . . Recycling Units 4 | . 2 . . . 2 . . . . . . . . . . . Tunnel 4 | . 2 . . . 2 . . . . . . . . . . . Scanalyzers . | . . . . . . . . . . . . . . . . . Garrison Access 1 | . . . . . 1 . . . . . . . . . . . Reprogram 1 | . . . . . 1 . . . . . . . . . . . Data Cores Recovered . | . . . . . . . . . . . . . . . . . Used . | . . . . . . . . . . . . . . . . . Hacking Detections 37 | . 7 . . . 10 . . 6 3 . . . . 4 2 5 Full Trace Events 11 | . 2 . . . 2 . . 3 . . . . . . . 4 Feedback Events 1 | . . . . . . . . . . . . . . . . 1 Corruption 1 | . . . . . . . . . . . . . . . . 1 Feedback Blocked . | . . . . . . . . . . . . . . . . . Robot Schematics Acquired . | . . . . . . . . . . . . . . . . . Robots Built . | . . . . . . . . . . . . . . . . . Authchips . | . . . . . . . . . . . . . . . . . Time . | . . . . . . . . . . . . . . . . . Total Robot Build Rating . | . . . . . . . . . . . . . . . . . Part Schematics Acquired 8 | . . . . . 1 . . . 3 . . 4 . . . . Parts Built . | . . . . . . . . . . . . . . . . . Authchips . | . . . . . . . . . . . . . . . . . Time . | . . . . . . . . . . . . . . . . . Total Part Build Rating . | . . . . . . . . . . . . . . . . . Parts Repaired 5 | . . . . . 1 . . . . . . . . 1 . 3 Time 186 | . . . . . 32 . . . . . . . . 22 . 132 Parts Recycled . | . . . . . . . . . . . . . . . . . Recycled Matter . | . . . . . . . . . . . . . . . . . Retrieved Matter . | . . . . . . . . . . . . . . . . . Retrieved Components . | . . . . . . . . . . . . . . . . . Parts Scanalyzed 3 | . . . . . . . . . 3 . . . . . . . Part Schematics Acquired 3 | . . . . . . . . . 3 . . . . . . . Parts Damaged . | . . . . . . . . . . . . . . . . . Bothacking | -11 -10 -10 -10 -9 -8 -7 -7 -6 -5 -5 -5 -5 -4 -4 -4 -3 ------------ Run | Yrd Mat Min Exi Min Mat Fac DSF Fac Fac Upp Upp Zhi Pro Fac Ext Res Used RIF Installer . | . . . . . . . . . . . . . . . . . Robots Hacked . | . . . . . . . . . . . . . . . . . Non-combat . | . . . . . . . . . . . . . . . . . Combat . | . . . . . . . . . . . . . . . . . Robot Hacks Applied . | . . . . . . . . . . . . . . . . . Relay Couplers Released . | . . . . . . . . . . . . . . . . . Fabnet Peak Effective % . | . . . . . . . . . . . . . . . . . Robots Rewired 9 | . . . . . . . . . . 2 . . . . 7 . Allies Hacked . | . . . . . . . . . . . . . . . . . Hacks Repelled . | . . . . . . . . . . . . . . . . . Allies | -11 -10 -10 -10 -9 -8 -7 -7 -6 -5 -5 -5 -5 -4 -4 -4 -3 -------- Run | Yrd Mat Min Exi Min Mat Fac DSF Fac Fac Upp Upp Zhi Pro Fac Ext Res Total Allies 15 | . . . . 3 2 . . . . 2 . . . . 8 . Largest Group 4 | . . . . 3 3 . . . . 2 1 . . . 4 . Highest-Rated Group 263 | . . . . 40 40 . . . . 59 30 . . . 263 . Highest-Rated Ally 159 | . . . . 16 16 . . . . 30 30 . . . 159 . Total Orders 11 | . . . . . . . . . . . 11 . . . . . EXPLORE 11 | . . . . . . . . . . . 11 . . . . . Ally Attacks 103 | . . . . 8 53 . . . . 1 1 . . . 40 . Total Damage 1930 | . . . . 119 584 . . . . 22 21 . . . 1184 . Kills 13 | . . . . 2 7 . . . . . . . . . 4 . Allies Corrupted 2 | . . . . . . . . . . . . . . . 2 . Allies Melted . | . . . . . . . . . . . . . . . . . Intel | -11 -10 -10 -10 -9 -8 -7 -7 -6 -5 -5 -5 -5 -4 -4 -4 -3 ------- Run | Yrd Mat Min Exi Min Mat Fac DSF Fac Fac Upp Upp Zhi Pro Fac Ext Res Robot Analysis Total 5 | . 1 . . . . . . . . . . 4 . . . . Derelict Logs Recovered 7 | . . 2 . 1 . . . . . 1 1 . 2 . . . Drone Launches 11 | . . . . . . . . . . . 11 . . . . . Drone Recoveries 8 | . . . . . . . . . . . 8 . . . . . Exploration | -11 -10 -10 -10 -9 -8 -7 -7 -6 -5 -5 -5 -5 -4 -4 -4 -3 ------------- Run | Yrd Mat Min Exi Min Mat Fac DSF Fac Fac Upp Upp Zhi Pro Fac Ext Res Turns Passed 10135 | 59 694 844 206 246 1153 24 79 1337 602 864 888 396 384 727 955 677 Spaces Moved 6168 | 34 356 513 129 136 541 14 58 953 352 608 555 256 280 412 467 504 Core 77 | 7 . . . . . . . . . . . . . . . 70 Treads 1702 | 27 356 513 129 136 541 . . . . . . . . . . . Legs 4205 | . . . . . . 14 58 953 352 608 555 256 280 412 467 250 Wheels . | . . . . . . . . . . . . . . . . . Hover . | . . . . . . . . . . . . . . . . . Flight 184 | . . . . . . . . . . . . . . . . 184 Fastest Speed 34 | 50 160 160 160 160 160 130 130 110 110 120 127 126 127 122 120 34 Average Speed 130 | 143 160 160 160 160 160 130 130 112 137 124 127 126 127 127 122 83 Slowest Speed 600 | 160 160 160 160 160 240 130 130 130 190 128 128 127 127 195 190 600 Overloaded Moves . | . . . . . . . . . . . . . . . . . Propulsion Burnouts . | . . . . . . . . . . . . . . . . . Robots Hopped 23 | . . . . . . . . . . . . . . . . 23 Cave-ins Triggered 1 | . . . . . . . . . . . . . . . 1 . Teleports 1 | . . . . . . . . . . . . . . . 1 . Exploration Rate (%) 47 | 4 69 98 47 31 49 . 59 26 11 78 79 62 50 13 57 21 Regions Visited 16 Branch Regions 8 Pre-discovered Areas 10 | . 2 1 1 1 2 . . . . . . 3 . . . . Known Exits Taken 3 | . . . . . . 1 . . 1 . . . 1 . . . Unknown Exits Taken 12 | 1 1 1 1 1 1 . . 1 . 1 1 1 . 1 1 . Scrap Searched 8 | . . 1 . 1 . . . . . 2 2 . 2 . . . Spaces Dug 39 | . . . . . . . . 5 . . 12 14 . 1 1 6 Terrain Destroyed 363 | . . . . . 57 . . 12 55 48 39 28 17 59 37 11 Melee . | . . . . . . . . . . . . . . . . . Projectile 87 | . . . . . . . . . 6 3 13 . 1 17 36 11 AOE 275 | . . . . . 57 . . 12 49 45 26 28 16 42 . . Terrain Rammed . | . . . . . . . . . . . . . . . . . Walls Destroyed . | . . . . . . . . . . . . . . . . . Machines Disabled . | . . . . . . . . . . . . . . . . . Actions | -11 -10 -10 -10 -9 -8 -7 -7 -6 -5 -5 -5 -5 -4 -4 -4 -3 --------- Run | Yrd Mat Min Exi Min Mat Fac DSF Fac Fac Upp Upp Zhi Pro Fac Ext Res Total 7451 | 41 437 528 130 158 711 21 61 1098 422 688 696 306 296 539 665 654 Wait 394 | . 34 9 . 13 44 . . 24 4 33 97 . . 24 19 93 Move 6110 | 33 355 512 128 135 540 13 57 952 351 607 554 255 279 411 466 462 Hop 19 | . . . . . . . . . . . . . . . . 19 Pick Up 95 | 2 7 . . 1 20 . 4 7 9 4 4 5 2 13 10 7 Fast Attach 79 | 6 3 1 . 1 4 . . 10 4 1 2 4 . 16 11 16 Attach 58 | . . . . 3 4 6 . 3 2 6 3 2 1 7 14 7 Detach 8 | . . . 2 1 1 . . . 1 . . . . 1 2 . Swap 78 | . 4 . . . 8 . . 9 12 4 4 4 4 18 11 . Drop 80 | . 7 1 . . 13 2 . 9 11 2 4 6 3 17 4 1 Fire 443 | . 27 5 . 4 77 . . 56 27 19 28 30 7 31 87 45 Melee . | . . . . . . . . . . . . . . . . . Ram 4 | . . . . . . . . . . . . . . . . 4 Kick 30 | . . . . . . . . 28 1 . . . . 1 . . Crush . | . . . . . . . . . . . . . . . . . Escape Stasis . | . . . . . . . . . . . . . . . . . Rewire 53 | . . . . . . . . . . 12 . . . . 41 . Trap . | . . . . . . . . . . . . . . . . . Miscellaneous . | . . . . . . . . . . . . . . . . . Route ------- -11/Scrapyard -10/Materials (discovered 4 exits: [*Mat x2] / [*Min x2]) -10/Mines (discovered 3 exits: [*Mat x2] / *Exi) -10/Exiles -9/Mines -8/Materials (discovered 2 exits: *Fac x2) -7/Factory (discovered 2 exits: Sto / DSF) -7/DSF -6/Factory -5/Factory (discovered 2 exits: *Upp x2) -5/Upper Caves -5/Upper Caves (discovered 2 exits: *Fac / *Zhi) -5/Zhirov -4/Proximity Caves -4/Factory (discovered 2 exits: Upp / *Ext) -4/Extension (discovered 2 exits: *Res / [*Cet]) -3/Research (discovered 1 exit: [*Res]) History --------- Turn | Location | Event 15 | -11/Scrapyard | Discovered new exit (range 15) 60 | -11/Scrapyard | Entered Materials 234 | -10/Materials | Discovered new exit (range 5) 309 | -10/Materials | Build established: Mutant 316 | -10/Materials | Central database locked down 476 | -10/Materials | Discovered new exit (range 14) 553 | -10/Materials | Discovered new exit (range 14) 660 | -10/Materials | Discovered new exit (range 7) 754 | -10/Materials | Entered Mines 1097 | -10/Mines | Learned Materials terminal intel 1218 | -10/Mines | Found a damaged Exp. Sensor Array with a note attached 1241 | -10/Mines | Discovered new exit (range 7) 1273 | -10/Mines | Discovered new exit (range 10) 1590 | -10/Mines | Deemed a non-threat by the Exiles lab entrance 1591 | -10/Mines | Discovered new exit (range 5) 1598 | -10/Mines | Entered Exiles 1638 | -10/Exiles | Met 8R-AWN 1668 | -10/Exiles | Met EX-HEX 1737 | -10/Exiles | Learned location of Zion (-7) 1790 | -10/Exiles | Discovered new exit (range 11) 1804 | -10/Exiles | Entered Mines 1809 | -9/Mines | Met a Derelict bent on vengeance 1973 | -9/Mines | Assisted by bots powering up and referring to "LRC-V3" 2040 | -9/Mines | Discovered new exit (range 7) 2045 | -9/Mines | Learned location of Recycling (-7) 2050 | -9/Mines | Entered Materials 2050 | -8/Materials | Accompanied by 3 allies 2050 | -8/Materials | Evolved 4 slots: Propulsion x2, Utility x2 2051 | -8/Materials | Loaded intel: 12 terminal locations 2219 | -8/Materials | Garrison activated, responded to threat 2254 | -8/Materials | Discovered new exit (range 15) 2970 | -8/Materials | Repaired Med. Armor Plating 3060 | -8/Materials | Discovered new exit (range 15) 3181 | -8/Materials | Destroyed 7 combat bots 3203 | -8/Materials | Entered Factory 3203 | -7/Factory | Evolved 2 slots: Utility x1, Weapon x1 3204 | -7/Factory | Identified exit to Storage 3226 | -7/Factory | Lost 4 parts (1p2n1u) 3226 | -7/Factory | Identified exit to DSF 3227 | -7/Factory | Entered DSF 3260 | -7/DSF | Additional patrols routed to DSF 3285 | -7/DSF | Discovered new exit (range 16) 3306 | -7/DSF | Entered Factory 3306 | -6/Factory | Evolved 2 slots: Propulsion x1, Utility x1 3687 | -6/Factory | Build established: Tank 4625 | -6/Factory | Discovered new exit (range 15) 4643 | -6/Factory | Entered another Factory area 4643 | -5/Factory | Evolved 2 slots: Utility x2 4782 | -5/Factory | Destroyed 8 combat bots 4969 | -5/Factory | Identified exit to Upper Caves 5245 | -5/Factory | Entered Upper Caves 5625 | -5/Upper Caves | Attracted the attention of an 0b10 outpost 5667 | -5/Upper Caves | Destroyed 7 combat bots 5667 | -5/Upper Caves | Lost 4 parts (1n1u2w) 5961 | -5/Upper Caves | Learned Factory security intel 5963 | -5/Upper Caves | Spotted B-75 Beast 6072 | -5/Upper Caves | Discovered new exit (range 3) 6109 | -5/Upper Caves | Entered another Upper Caves area 6109 | -5/Upper Caves | Accompanied by 1 ally 6635 | -5/Upper Caves | Discovered new exit (range 16) 6768 | -5/Upper Caves | Learned 4 Factory zone layouts 6973 | -5/Upper Caves | Spotted B-75 Beast 6995 | -5/Upper Caves | Discovered new exit (range 2) 6997 | -5/Upper Caves | Entered Zhirov 6997 | -5/Zhirov | Discovered new exit (range 3) 7046 | -5/Zhirov | Met Zhirov 7071 | -5/Zhirov | Learned location of Quarantine (-2) 7071 | -5/Zhirov | Learned location of Testing (-3) 7071 | -5/Zhirov | Learned location of Command (-1) 7098 | -5/Zhirov | Zhirov requested help retrieving the SGEMP Prototype 7121 | -5/Zhirov | Found Alien Artifact 7136 | -5/Zhirov | Found Alien Artifact 7139 | -5/Zhirov | Identified Integrated Dissipator 7139 | -5/Zhirov | Installed Integrated Dissipator, increased core heat dissipation (+20) 7393 | -5/Zhirov | Entered Proximity Caves 7427 | -4/Proximity Caves | Build established: Hacker-Tank 7479 | -4/Proximity Caves | Identified exit to Factory 7730 | -4/Proximity Caves | Learned location of 1 exit from Upper Caves 7777 | -4/Proximity Caves | Entered Factory 7777 | -4/Factory | Evolved 2 slots: Power x1, Utility x1 7778 | -4/Factory | Identified exit to Upper Caves 7858 | -4/Factory | Build established: Hacker-Gunner 7944 | -4/Factory | Spotted B-86 Titan 8023 | -4/Factory | Found Prototype Launcher 8023 | -4/Factory | Identified Tesla Bomb Launcher 8194 | -4/Factory | Build established: Hacker-Tank 8218 | -4/Factory | Repaired Imp. Titanium Leg 8490 | -4/Factory | Lost 3 parts (1p1n1w) 8492 | -4/Factory | Discovered new exit (range 6) 8504 | -4/Factory | Entered Extension 8873 | -4/Extension | Lost 3 allies 8940 | -4/Extension | Lost 7 parts (1p5u1w) 9161 | -4/Extension | Rescued A7 9175 | -4/Extension | Spotted B-86 Titan 9186 | -4/Extension | Spotted B-86 Titan 9200 | -4/Extension | Crushed by falling debris 9204 | -4/Extension | Destroyed B-86 Titan 9209 | -4/Extension | Lost 3 allies 9225 | -4/Extension | Extracted ID and sensor layout for unrecognized location from A7's data core 9231 | -4/Extension | Lost 3 parts (1p1n1u) 9245 | -4/Extension | Destroyed B-86 Titan 9324 | -4/Extension | Identified Transdimensional Reconstructor 9324 | -4/Extension | Warped through subspace 9352 | -4/Extension | Lost 13 parts (2p2n5u4w) 9409 | -4/Extension | Discovered new exit (range 16) 9409 | -4/Extension | Discovered new exit (range 16) 9459 | -4/Extension | Entered Research 9459 | -3/Research | Evolved 2 slots: Propulsion x1, Utility x1 9488 | -3/Research | Identified exit to DSF 9533 | -3/Research | Build established: Scavenger-Mutant 9536 | -3/Research | Repaired Myomer Leg? 9599 | -3/Research | Repaired Imp. Medium Armor Plating 9627 | -3/Research | Repaired Lrg. Storage Unit 9703 | -3/Research | Lost 3 parts (1p1u1w) 9767 | -3/Research | Discovered new exit (range 12) 10024 | -3/Research | Released all parts (3) 10032 | -3/Research | Spotted B-86 Titan 10060 | -3/Research | Lost 20 parts (3p8n5u4w) 10117 | -3/Research | Core integrity fell below 50% 10134 | -3/Research | Core integrity fell below 20% 10136 | -3/Research | Destroyed by H-77 Assassin with High-powered Shotgun Last Messages --------------- 10128_ ALERT: Suspicious activity at Terminal R004. Dispatching Investigation squad. 10130_ Slug penetrates Terminal. 10130_ Penetrated by Slug. 10130_ Terminal disabled. 10130_ Slug penetrates Wall. 10131_ Penetrated by Slug. 10131_ Slammed into H-77 Assassin. 10131_ Destabilizing: Core damaged (-65). 10131_ Penetrated by Slug. 10131_ Slug penetrates Wall. 10131_ Penetrated by Slug. 10131_ Slug penetrates Wall. 10132_ Slammed into H-77 Assassin. 10133_ Penetrated by Slug. 10134_ Slug penetrates H-77 Assassin. 10134_ Slammed into H-77 Assassin. 10136_ Slug penetrates H-77 Assassin. 10136_ R-10 Processor destroyed. [Achievement: Tester] Map ----- +----------------------------------------------------+ | #??????????????????????????????????????????? | | #??????????????????????????????????????????? | | #??????????????????????????????????????????? | | * #??????????????????????????????????????????? | | #??????????????????????????????????????????? | | ? #??????????????????????????????????????????? | | #######??????????????????????????????????????????? | | #???????????????????????????????????????????????? | | #???????????????????????????????????????????????? | | #???????????????????????????????????????????????? | | #???????????????????????????????????????????????? | | #???????????????###?????????????????????????????? | | #????????????#### ############??????????????????? | | #????????????# #??????????????????? | | #????????????# #??????????????????? | | ??????????????# #??????????????????? | | ######????????# !!/ #??????????????????? | | #????????# !/ #??????????????????? | | #????????# " !/ #??????????????????? | | #????????# "T #??????????????????? | | #????????# """ #??????????????????? | | # #????????# #??????????????????? | | # #????????# #??????????????????? | | # #################/##############+???????????? | | # hh u h h ????????? | | # RR hh@ ????????? | | # =%= k ????????? | | # R %u gg ????????? | | # ############ T########### ####g####?????????? | | # #??????????####???????????#?????????????????? | | # #???????????????????????????????????????????? | | # #???????????????????????????????????????????? | | # #???????????????????????????????????????????? | | # #???????????????????????????????????????????? | | # +???????????????????????????????????????????? | | # #???????????????????????????????????????????? | | #^ #???????????????????????????????????????????? | | # ????????????????????????????????????????????? | | ????????????????????????????????????????????? | | ?? ????????????????????????????????????????????? | | ?????????????????????????????????????????????????? | | ?????????????????????????????????????????????????? | | ?????????????????????????????????????????????????? | | ?????????????????????????????????????????????????? | | ?????????????????????????????????????????????????? | | ?????????????????????????????????????????????????? | | ?????????????????????????????????????????????????? | | ?????????????????????????????????????????????????? | | ?????????????????????????????????????????????????? | | ?????????????????????????????????????????????????? | +----------------------------------------------------+ Best States ------------- Heat Dissipation 85 Energy Generation 36 Energy Capacity 530 Matter Stores 300 Matter Capacity 300 Sight Range 16 Terrain Scan Range 20 Terrain Scan Density 210 Jamming Range 12 Base Temperature (-) 200 Armor Coverage 450 Resistance: KI 25 Resistance: TH 30 Weapon Cycling 20 Phase Shifting 10 Evasion (%) 63 Targeting Accuracy 8 Recoil Reduction 6 Particle Charging 30 Kinecelleration 40 Offensive Hacking 26 Item Schematics ----------------- Imp. Utility Shielding | -8/Materials | Hacked Adv. Terrain Scan Processor | -5/Factory | Scanalyzed Adv. Heat Sink | -5/Factory | Scanalyzed F-cell Engine | -5/Factory | Scanalyzed Assault Drone Bay | -5/Zhirov | Free Exp. Heat Sink | -5/Zhirov | Free Exp. Optical Array | -5/Zhirov | Free Imp. Arc Thrower | -5/Zhirov | Free Robot Schematics ------------------ None Fabricated ------------ Nothing Alien Tech Used ----------------- Integrated Dissipator Transdimensional Reconstructor Achievements -------------- Tester The Science Guy Challenges ------------ None Game ------ Seed ConstructHypercooledBlaster Manual? 0 Play Time 02:16:16 Cumulative 55.7 hours Start 2024.05.09 @ 09:28:29 End 2024.05.10 @ 05:17:56 Sessions 4 Manual Loads 0 Difficulty Rogue Special Mode None Game No. 94 Rogue 72 Adventurer 22 Explorer 0 Win Type - Total 1 Types 1/0/0/0/0/0/0/0/0 Lore% 39 Gallery% 51 Achievement% 45 Wizard Run 0 Options --------- Layout 0 ASCII 0 Keyboard 1 Movement Mouse Keybinds 0 Fullscreen 2 Font 18/SmallcapsGlow Map View 76x50 Zoom Use 48% Tactical HUD 1 Map Filters NONE Filters NONE Steam 1 RUN: 8f07f929-951a-408c-b48b-1c5e8047b012